[Event "Early-Titled-Tuesday-Blitz-May-14-2024"]
[Site "Chess.com"]
[Date "2024.05.14"]
[Round "11"]
[White "MrLion3000"]
[Black "viktorgen2021"]
[Result "0-1"]
[WhiteElo "2784"]
[BlackElo "2559"]
[TimeControl "180+1"]
[EndTime "10:07:59 PDT"]
[Termination "viktorgen2021 won by checkmate"]

1. d4 {[%clk 0:02:58.2]} 1... Nf6 {[%clk 0:02:59.5]} 2. c4 {[%clk 0:02:57.8]}
2... g6 {[%clk 0:02:58.3]} 3. Nc3 {[%clk 0:02:57.2]} 3... Bg7 {[%clk 0:02:58.9]}
4. e4 {[%clk 0:02:57.3]} 4... O-O {[%clk 0:02:59.5]} 5. Be2 {[%clk 0:02:57.9]}
5... d6 {[%clk 0:03:00.2]} 6. Be3 {[%clk 0:02:58.6]} 6... Na6 {[%clk 0:02:58.4]}
7. Nf3 {[%clk 0:02:53.5]} 7... c6 {[%clk 0:02:57]} 8. h3 {[%clk 0:02:46]} 8...
Qc7 {[%clk 0:02:57.3]} 9. g4 {[%clk 0:02:39.8]} 9... e5 {[%clk 0:02:56.8]} 10.
d5 {[%clk 0:02:39.4]} 10... Nc5 {[%clk 0:02:55.3]} 11. Nd2 {[%clk 0:02:35.6]}
11... a5 {[%clk 0:02:55.1]} 12. g5 {[%clk 0:02:34.3]} 12... Ne8 {[%clk
0:02:52.4]} 13. h4 {[%clk 0:02:34]} 13... f5 {[%clk 0:02:28.6]} 14. gxf6 {[%clk
0:02:31.9]} 14... Nxf6 {[%clk 0:02:11.4]} 15. h5 {[%clk 0:02:30.5]} 15... gxh5
{[%clk 0:02:00.9]} 16. Bxh5 {[%clk 0:02:29.2]} 16... Nd3+ {[%clk 0:02:00.2]} 17.
Kf1 {[%clk 0:02:24.2]} 17... Nf4 {[%clk 0:01:36.4]} 18. Bf3 {[%clk 0:02:06.9]}
18... Kh8 {[%clk 0:01:34.8]} 19. Qc2 {[%clk 0:01:59.8]} 19... Bh3+ {[%clk
0:01:28.5]} 20. Ke1 {[%clk 0:01:56.4]} 20... Bg2 {[%clk 0:01:28.4]} 21. Rg1
{[%clk 0:01:40.4]} 21... Bxf3 {[%clk 0:01:26.1]} 22. Nxf3 {[%clk 0:01:41]} 22...
Qf7 {[%clk 0:01:02.8]} 23. Bxf4 {[%clk 0:01:25.3]} 23... exf4 {[%clk 0:01:02.1]}
24. Ng5 {[%clk 0:01:26.2]} 24... Qh5 {[%clk 0:00:54.5]} 25. Ne6 {[%clk
0:01:25.7]} 25... Bh6 {[%clk 0:00:47.2]} 26. Nxf8 {[%clk 0:01:02.4]} 26... Rxf8
{[%clk 0:00:48.1]} 27. Qd3 {[%clk 0:00:41.7]} 27... Qh2 {[%clk 0:00:41]} 28. Ke2
{[%clk 0:00:26]} 28... Qh5+ {[%clk 0:00:17.5]} 29. Qf3 {[%clk 0:00:25.2]} 29...
Qe5 {[%clk 0:00:17.7]} 30. Rh1 {[%clk 0:00:23.1]} 30... Bg7 {[%clk 0:00:18]} 31.
Rag1 {[%clk 0:00:18.5]} 31... cxd5 {[%clk 0:00:18.3]} 32. cxd5 {[%clk
0:00:18.4]} 32... b5 {[%clk 0:00:18.9]} 33. Kf1 {[%clk 0:00:15.5]} 33... b4
{[%clk 0:00:18.9]} 34. Nd1 {[%clk 0:00:08.7]} 34... Nxe4 {[%clk 0:00:19.1]} 35.
Qg4 {[%clk 0:00:05.3]} 35... Nd2+ {[%clk 0:00:15.5]} 36. Kg2 {[%clk 0:00:05.8]}
36... f3+ {[%clk 0:00:15.5]} 37. Kh3 {[%clk 0:00:06.4]} 37... Ne4 {[%clk
0:00:11.8]} 38. Qd7 {[%clk 0:00:03.7]} 38... Qh5# {[%clk 0:00:10.5]} 0-1

[Event "Early-Titled-Tuesday-Blitz-May-14-2024"]
[Site "Chess.com"]
[Date "2024.05.14"]
[Round "11"]
[White "DerKnipser"]
[Black "dinushkipremanath"]
[Result "1-0"]
[WhiteElo "2360"]
[BlackElo "2152"]
[TimeControl "180+1"]
[EndTime "10:08:00 PDT"]
[Termination "DerKnipser won by resignation"]

1. e4 {[%clk 0:02:59.9]} 1... e6 {[%clk 0:03:00.9]} 2. d4 {[%clk 0:02:59.7]}
2... d5 {[%clk 0:03:01.6]} 3. Nc3 {[%clk 0:03:00.4]} 3... Nf6 {[%clk 0:03:01.7]}
4. exd5 {[%clk 0:03:00.3]} 4... exd5 {[%clk 0:03:00.7]} 5. Bd3 {[%clk
0:03:00.8]} 5... Bd6 {[%clk 0:02:59.4]} 6. Nge2 {[%clk 0:03:01.2]} 6... Nc6
{[%clk 0:02:59.5]} 7. Bg5 {[%clk 0:03:00.7]} 7... Ne7 {[%clk 0:02:56.6]} 8. Bxf6
{[%clk 0:02:59.9]} 8... gxf6 {[%clk 0:02:56.3]} 9. Qd2 {[%clk 0:02:55.4]} 9...
c6 {[%clk 0:02:56]} 10. Qh6 {[%clk 0:02:48.3]} 10... Ng6 {[%clk 0:02:53.1]} 11.
h4 {[%clk 0:02:45.7]} 11... Bf8 {[%clk 0:02:50.6]} 12. Qe3+ {[%clk 0:02:43.5]}
12... Qe7 {[%clk 0:02:50.6]} 13. Qf3 {[%clk 0:02:41.6]} 13... h5 {[%clk
0:02:47.4]} 14. O-O-O {[%clk 0:02:39.8]} 14... Bg4 {[%clk 0:02:47]} 15. Qg3
{[%clk 0:02:36.3]} 15... O-O-O {[%clk 0:02:42.7]} 16. f3 {[%clk 0:02:35.2]}
16... Qe3+ {[%clk 0:02:40.3]} 17. Kb1 {[%clk 0:02:32.1]} 17... Bd6 {[%clk
0:02:40.8]} 18. Qe1 {[%clk 0:02:22.6]} 18... Bd7 {[%clk 0:02:37.4]} 19. Qf1
{[%clk 0:02:15.5]} 19... f5 {[%clk 0:02:34.7]} 20. Re1 {[%clk 0:01:59.7]} 20...
Rde8 {[%clk 0:02:34.6]} 21. Nd1 {[%clk 0:01:51.9]} 21... Qd2 {[%clk 0:02:31.9]}
22. Nec3 {[%clk 0:01:42.1]} 22... Rxe1 {[%clk 0:02:28.2]} 23. Qxe1 {[%clk
0:01:42.1]} 23... Qxg2 {[%clk 0:02:27.8]} 24. Ne3 {[%clk 0:01:28.8]} 24... Qxf3
{[%clk 0:02:25]} 25. Rf1 {[%clk 0:01:29.2]} 25... Qg3 {[%clk 0:02:21.1]} 26.
Nxf5 {[%clk 0:01:18.1]} 26... Qxe1+ {[%clk 0:02:16.2]} 27. Rxe1 {[%clk 0:01:19]}
27... Bb4 {[%clk 0:02:10.3]} 28. a3 {[%clk 0:01:15.1]} 28... Bxc3 {[%clk
0:01:57.6]} 29. bxc3 {[%clk 0:01:16]} 29... Bxf5 {[%clk 0:01:53.3]} 30. Bxf5+
{[%clk 0:01:15.9]} 30... Kd8 {[%clk 0:01:53.9]} 31. Bxg6 {[%clk 0:01:15.7]}
31... fxg6 {[%clk 0:01:54.8]} 32. Rg1 {[%clk 0:01:16.1]} 32... Rg8 {[%clk
0:01:54.3]} 33. Kc1 {[%clk 0:01:12.6]} 33... Ke7 {[%clk 0:01:54.5]} 34. Kd2
{[%clk 0:01:11.3]} 34... Kf6 {[%clk 0:01:54.5]} 35. Rf1+ {[%clk 0:01:10.8]}
35... Kg7 {[%clk 0:01:52.4]} 36. Kd3 {[%clk 0:01:03.3]} 36... Rf8 {[%clk
0:01:50.7]} 37. Re1 {[%clk 0:01:00.7]} 37... Rf3+ {[%clk 0:01:44.4]} 38. Kd2
{[%clk 0:01:00.7]} 38... Kf7 {[%clk 0:01:40.8]} 39. Rh1 {[%clk 0:00:55.7]} 39...
Rf4 {[%clk 0:01:35.2]} 40. Ke3 {[%clk 0:00:53.8]} 40... Re4+ {[%clk 0:01:35]}
41. Kd3 {[%clk 0:00:54]} 41... Ke6 {[%clk 0:01:34]} 42. c4 {[%clk 0:00:50.8]}
42... Kf5 {[%clk 0:01:27.3]} 43. cxd5 {[%clk 0:00:50.7]} 43... cxd5 {[%clk
0:01:28.2]} 44. c4 {[%clk 0:00:47]} 44... Rf4 {[%clk 0:01:17.4]} 45. cxd5 {[%clk
0:00:37.4]} 45... Rf3+ {[%clk 0:01:17.7]} 46. Kc4 {[%clk 0:00:37.5]} 46... Rxa3
{[%clk 0:01:17.4]} 47. Rf1+ {[%clk 0:00:36.3]} 47... Kg4 {[%clk 0:01:17.1]} 48.
d6 {[%clk 0:00:36.7]} 48... Ra4+ {[%clk 0:01:12.5]} 49. Kd5 {[%clk 0:00:35.9]}
49... Ra5+ {[%clk 0:01:12.2]} 50. Ke6 {[%clk 0:00:35.5]} 50... Ra6 {[%clk
0:01:12.6]} 51. Ke7 {[%clk 0:00:35.3]} 51... Kxh4 {[%clk 0:01:12.3]} 52. d7
{[%clk 0:00:35.1]} 52... Ra2 {[%clk 0:01:08.2]} 53. d8=Q {[%clk 0:00:34.7]}
53... Re2+ {[%clk 0:01:09.1]} 54. Kf8+ {[%clk 0:00:34.5]} 54... g5 {[%clk
0:01:08.6]} 55. Rf5 {[%clk 0:00:32]} 55... Rg2 {[%clk 0:01:06.9]} 56. d5 {[%clk
0:00:31.1]} 56... Kg4 {[%clk 0:01:00.7]} 57. Rxg5+ {[%clk 0:00:30.2]} 1-0

[Event "Early-Titled-Tuesday-Blitz-May-14-2024"]
[Site "Chess.com"]
[Date "2024.05.14"]
[Round "11"]
[White "tandaleo"]
[Black "Buzhizhebuguai"]
[Result "0-1"]
[WhiteElo "2601"]
[BlackElo "2769"]
[TimeControl "180+1"]
[EndTime "10:08:02 PDT"]
[Termination "Buzhizhebuguai won by resignation"]

1. b3 {[%clk 0:03:00.9]} 1... d5 {[%clk 0:02:57.5]} 2. Bb2 {[%clk 0:03:01.8]}
2... Bf5 {[%clk 0:02:57.2]} 3. Nf3 {[%clk 0:03:00.2]} 3... c6 {[%clk 0:02:56.5]}
4. e3 {[%clk 0:02:59.9]} 4... e6 {[%clk 0:02:56.9]} 5. Be2 {[%clk 0:02:58.8]}
5... Nf6 {[%clk 0:02:56.4]} 6. Nh4 {[%clk 0:02:58.6]} 6... Bg6 {[%clk
0:02:51.9]} 7. d3 {[%clk 0:02:54.7]} 7... Nbd7 {[%clk 0:02:51.4]} 8. Nd2 {[%clk
0:02:54.7]} 8... Bd6 {[%clk 0:02:50.1]} 9. Nxg6 {[%clk 0:02:48.8]} 9... hxg6
{[%clk 0:02:49.9]} 10. h3 {[%clk 0:02:49.5]} 10... a5 {[%clk 0:02:48.8]} 11. a3
{[%clk 0:02:49.5]} 11... e5 {[%clk 0:02:47.9]} 12. O-O {[%clk 0:02:39.1]} 12...
g5 {[%clk 0:02:42.4]} 13. e4 {[%clk 0:02:38.1]} 13... d4 {[%clk 0:02:39.1]} 14.
Nc4 {[%clk 0:02:34.1]} 14... Bc7 {[%clk 0:02:39.4]} 15. Bc1 {[%clk 0:02:30.9]}
15... Nh7 {[%clk 0:02:27.3]} 16. a4 {[%clk 0:02:28.8]} 16... Ndf8 {[%clk
0:02:27]} 17. Bg4 {[%clk 0:02:24.1]} 17... Ng6 {[%clk 0:02:25]} 18. g3 {[%clk
0:02:23.8]} 18... Nhf8 {[%clk 0:02:14.1]} 19. Kg2 {[%clk 0:02:20.9]} 19... Ne6
{[%clk 0:02:06.8]} 20. Bxe6 {[%clk 0:02:19.6]} 20... fxe6 {[%clk 0:02:06.7]} 21.
Qg4 {[%clk 0:02:19.5]} 21... Qd7 {[%clk 0:01:58.6]} 22. Bxg5 {[%clk 0:02:17.9]}
22... Qf7 {[%clk 0:01:57.5]} 23. f4 {[%clk 0:02:07.9]} 23... exf4 {[%clk
0:01:53.8]} 24. gxf4 {[%clk 0:02:08.8]} 24... b5 {[%clk 0:01:40.3]} 25. axb5
{[%clk 0:02:00.3]} 25... cxb5 {[%clk 0:01:40.3]} 26. Nd2 {[%clk 0:01:59.9]}
26... O-O {[%clk 0:01:26.7]} 27. f5 {[%clk 0:01:53.1]} 27... Ne5 {[%clk
0:01:26.8]} 28. Qh4 {[%clk 0:01:24]} 28... Qd7 {[%clk 0:01:25]} 29. fxe6 {[%clk
0:01:20]} 29... Qxe6 {[%clk 0:01:25.3]} 30. Rxf8+ {[%clk 0:01:16.6]} 30... Rxf8
{[%clk 0:01:25.4]} 31. Rf1 {[%clk 0:01:17]} 31... Rxf1 {[%clk 0:01:24.9]} 32.
Nxf1 {[%clk 0:01:16]} 32... a4 {[%clk 0:01:25.2]} 33. bxa4 {[%clk 0:01:13.9]}
33... bxa4 {[%clk 0:01:25.7]} 34. Bc1 {[%clk 0:01:06.4]} 34... Qg6+ {[%clk
0:01:16.1]} 35. Ng3 {[%clk 0:01:05.5]} 35... Qc6 {[%clk 0:01:12.1]} 36. c4
{[%clk 0:00:47.3]} 36... Nxd3 {[%clk 0:01:04]} 37. Ba3 {[%clk 0:00:46.9]} 37...
Qxc4 {[%clk 0:01:03.9]} 38. Qg4 {[%clk 0:00:18.1]} 38... Nf4+ {[%clk 0:00:58.7]}
39. Kg1 {[%clk 0:00:13.8]} 39... Qe6 {[%clk 0:00:30.3]} 40. Nf5 {[%clk
0:00:13.6]} 40... g6 {[%clk 0:00:26.1]} 41. Ne7+ {[%clk 0:00:12.8]} 41... Kf7
{[%clk 0:00:26.4]} 42. Qxe6+ {[%clk 0:00:12.4]} 42... Kxe6 {[%clk 0:00:25.2]}
43. Nd5 {[%clk 0:00:12.4]} 43... Nxd5 {[%clk 0:00:24.5]} 44. exd5+ {[%clk
0:00:13]} 44... Kxd5 {[%clk 0:00:24.9]} 45. Kf2 {[%clk 0:00:13.5]} 45... Bd6
{[%clk 0:00:25.4]} 0-1

[Event "Early-Titled-Tuesday-Blitz-May-14-2024"]
[Site "Chess.com"]
[Date "2024.05.14"]
[Round "11"]
[White "dianamirza"]
[Black "ItsCheckM8Mate"]
[Result "0-1"]
[WhiteElo "1948"]
[BlackElo "2230"]
[TimeControl "180+1"]
[EndTime "10:08:02 PDT"]
[Termination "ItsCheckM8Mate won by resignation"]

1. e4 {[%clk 0:02:33.1]} 1... e5 {[%clk 0:02:59.3]} 2. Nf3 {[%clk 0:02:32.3]}
2... Nc6 {[%clk 0:02:59.6]} 3. Nc3 {[%clk 0:02:29.9]} 3... Nf6 {[%clk
0:02:58.8]} 4. g3 {[%clk 0:02:30.1]} 4... Bc5 {[%clk 0:02:53.3]} 5. Bg2 {[%clk
0:02:29.9]} 5... d6 {[%clk 0:02:52.9]} 6. O-O {[%clk 0:02:29.9]} 6... O-O {[%clk
0:02:49.6]} 7. d3 {[%clk 0:02:20.4]} 7... h6 {[%clk 0:02:47.8]} 8. Na4 {[%clk
0:02:20.1]} 8... Qe7 {[%clk 0:02:44.4]} 9. Nxc5 {[%clk 0:02:20]} 9... dxc5
{[%clk 0:02:44.7]} 10. h3 {[%clk 0:02:19.2]} 10... b6 {[%clk 0:02:43]} 11. Kh2
{[%clk 0:02:19.2]} 11... Be6 {[%clk 0:02:34.8]} 12. Be3 {[%clk 0:02:19.2]} 12...
Rad8 {[%clk 0:02:33.8]} 13. Qd2 {[%clk 0:02:18.2]} 13... Nxe4 {[%clk 0:02:18.6]}
14. Qe2 {[%clk 0:02:11.9]} 14... Nf6 {[%clk 0:02:14.5]} 15. Ng5 {[%clk
0:02:09.8]} 15... Nd5 {[%clk 0:01:59.6]} 16. Nxe6 {[%clk 0:02:02.7]} 16... Qxe6
{[%clk 0:02:00.5]} 17. Bd2 {[%clk 0:01:57.2]} 17... Nd4 {[%clk 0:01:53.3]} 18.
Qd1 {[%clk 0:01:51.6]} 18... Rfe8 {[%clk 0:01:50.3]} 19. c3 {[%clk 0:01:51.8]}
19... Nc6 {[%clk 0:01:50.5]} 20. Qf3 {[%clk 0:01:44.3]} 20... Nde7 {[%clk
0:01:21.8]} 21. Rae1 {[%clk 0:01:41.2]} 21... Qd6 {[%clk 0:01:19.9]} 22. Qg4
{[%clk 0:01:35]} 22... Ng6 {[%clk 0:01:17.3]} 23. h4 {[%clk 0:01:22.2]} 23...
Kh8 {[%clk 0:01:09.4]} 24. h5 {[%clk 0:01:17.8]} 24... Nge7 {[%clk 0:01:08.5]}
25. Re3 {[%clk 0:00:51.1]} 25... Nd5 {[%clk 0:01:07.8]} 26. Rf3 {[%clk
0:00:47.9]} 26... Nf6 {[%clk 0:01:08]} 27. Qh4 {[%clk 0:00:41.3]} 27... e4
{[%clk 0:01:06.6]} 28. Re3 {[%clk 0:00:28.6]} 28... exd3 {[%clk 0:01:03.9]} 29.
Rf3 {[%clk 0:00:13.4]} 29... Ne5 {[%clk 0:01:01.8]} 30. Rf5 {[%clk 0:00:10.1]}
30... Qe6 {[%clk 0:00:40]} 31. Bh3 {[%clk 0:00:05.2]} 31... Qxf5 {[%clk
0:00:38.2]} 32. Bxf5 {[%clk 0:00:04.9]} 32... Nf3+ {[%clk 0:00:38.5]} 33. Kh3
{[%clk 0:00:05.6]} 33... Nxh4 {[%clk 0:00:39.2]} 34. Kxh4 {[%clk 0:00:06.4]}
34... Re2 {[%clk 0:00:39]} 35. Rd1 {[%clk 0:00:06.1]} 35... Ne4 {[%clk
0:00:35.2]} 36. Bxe4 {[%clk 0:00:05.7]} 36... Rxe4+ {[%clk 0:00:34.9]} 37. g4
{[%clk 0:00:06.2]} 37... Re2 {[%clk 0:00:33.3]} 38. Be3 {[%clk 0:00:06.4]} 38...
Rxb2 {[%clk 0:00:32.5]} 39. f4 {[%clk 0:00:04.3]} 39... Rxa2 {[%clk 0:00:31.7]}
40. g5 {[%clk 0:00:04.4]} 40... hxg5+ {[%clk 0:00:30.2]} 41. fxg5 {[%clk
0:00:05.3]} 41... Re2 {[%clk 0:00:29.5]} 42. Bd2 {[%clk 0:00:05]} 42... c4
{[%clk 0:00:28.4]} 43. Kg4 {[%clk 0:00:04]} 43... Rde8 {[%clk 0:00:28.6]} 44.
Bf4 {[%clk 0:00:03.1]} 44... R8e4 {[%clk 0:00:26.1]} 45. h6 {[%clk 0:00:03.3]}
45... Rf2 {[%clk 0:00:24]} 0-1

[Event "Early-Titled-Tuesday-Blitz-May-14-2024"]
[Site "Chess.com"]
[Date "2024.05.14"]
[Round "11"]
[White "rpragchess"]
[Black "snowlord"]
[Result "0-1"]
[WhiteElo "3096"]
[BlackElo "2959"]
[TimeControl "180+1"]
[EndTime "10:08:05 PDT"]
[Termination "snowlord won by resignation"]

1. Nf3 {[%clk 0:03:00.9]} 1... c5 {[%clk 0:02:59.8]} 2. g3 {[%clk 0:02:56.7]}
2... Nc6 {[%clk 0:02:59.3]} 3. Bg2 {[%clk 0:02:56.9]} 3... g6 {[%clk 0:02:59.9]}
4. O-O {[%clk 0:02:54.5]} 4... Bg7 {[%clk 0:02:59.8]} 5. c4 {[%clk 0:02:53.2]}
5... d6 {[%clk 0:02:56.2]} 6. Nc3 {[%clk 0:02:52.6]} 6... e6 {[%clk 0:02:56.9]}
7. e3 {[%clk 0:02:47.3]} 7... Nge7 {[%clk 0:02:57.5]} 8. d4 {[%clk 0:02:45.7]}
8... O-O {[%clk 0:02:58.2]} 9. d5 {[%clk 0:02:44.9]} 9... exd5 {[%clk
0:02:58.3]} 10. cxd5 {[%clk 0:02:45.8]} 10... Na5 {[%clk 0:02:45.8]} 11. e4
{[%clk 0:02:45.4]} 11... Bg4 {[%clk 0:02:31.8]} 12. h3 {[%clk 0:02:39.9]} 12...
Bxf3 {[%clk 0:02:32.1]} 13. Qxf3 {[%clk 0:02:38.8]} 13... Rb8 {[%clk 0:02:28.9]}
14. Qe2 {[%clk 0:02:37.7]} 14... a6 {[%clk 0:02:28.9]} 15. f4 {[%clk 0:02:34.7]}
15... b5 {[%clk 0:02:20.6]} 16. f5 {[%clk 0:02:32.1]} 16... Bd4+ {[%clk
0:02:06.3]} 17. Kh2 {[%clk 0:02:27.2]} 17... f6 {[%clk 0:02:03.5]} 18. Qd3
{[%clk 0:02:20.5]} 18... Nc4 {[%clk 0:02:00.9]} 19. Ne2 {[%clk 0:02:20.6]} 19...
Bxb2 {[%clk 0:01:53.9]} 20. Bxb2 {[%clk 0:02:16.6]} 20... Nxb2 {[%clk
0:01:54.8]} 21. Qc3 {[%clk 0:02:11.2]} 21... Na4 {[%clk 0:01:47.6]} 22. Qe3
{[%clk 0:02:10.7]} 22... g5 {[%clk 0:01:42.9]} 23. h4 {[%clk 0:02:09.6]} 23...
h6 {[%clk 0:01:43.5]} 24. Rad1 {[%clk 0:02:05.8]} 24... Kg7 {[%clk 0:01:39.5]}
25. e5 {[%clk 0:01:52.8]} 25... dxe5 {[%clk 0:01:39.7]} 26. d6 {[%clk
0:01:47.5]} 26... Nc8 {[%clk 0:01:40.1]} 27. d7 {[%clk 0:01:15.4]} 27... Ncb6
{[%clk 0:01:20.9]} 28. Bc6 {[%clk 0:00:51.6]} 28... Qe7 {[%clk 0:01:17.3]} 29.
Qf3 {[%clk 0:00:49.9]} 29... Rfd8 {[%clk 0:01:13.7]} 30. hxg5 {[%clk 0:00:36.3]}
30... hxg5 {[%clk 0:01:14.6]} 31. Kg2 {[%clk 0:00:36.7]} 31... e4 {[%clk
0:01:10.5]} 32. Qg4 {[%clk 0:00:23.8]} 32... Nc4 {[%clk 0:00:59.2]} 33. Qh5
{[%clk 0:00:20.4]} 33... Ne3+ {[%clk 0:00:54.2]} 34. Kg1 {[%clk 0:00:20.1]}
34... Qf7 {[%clk 0:00:54.8]} 35. Qh1 {[%clk 0:00:17.9]} 35... Nxf1 {[%clk
0:00:51.2]} 36. Kxf1 {[%clk 0:00:18]} 36... Nb2 {[%clk 0:00:50.4]} 37. Rd6
{[%clk 0:00:13.4]} 37... Nc4 {[%clk 0:00:46.4]} 38. Re6 {[%clk 0:00:13.6]} 38...
Rh8 {[%clk 0:00:40.4]} 39. Qxh8+ {[%clk 0:00:11.3]} 39... Rxh8 {[%clk 0:00:37]}
40. Re8 {[%clk 0:00:11.8]} 40... Qh5 {[%clk 0:00:23.1]} 41. d8=Q {[%clk
0:00:05.6]} 41... Qf3+ {[%clk 0:00:22.3]} 0-1

[Event "Early-Titled-Tuesday-Blitz-May-14-2024"]
[Site "Chess.com"]
[Date "2024.05.14"]
[Round "11"]
[White "David_Arutinian"]
[Black "sergoy"]
[Result "0-1"]
[WhiteElo "2849"]
[BlackElo "3011"]
[TimeControl "180+1"]
[EndTime "10:08:06 PDT"]
[Termination "sergoy won by resignation"]

1. Nf3 {[%clk 0:03:00.9]} 1... d5 {[%clk 0:02:59.7]} 2. e3 {[%clk 0:03:00.5]}
2... Nf6 {[%clk 0:02:59.9]} 3. c4 {[%clk 0:03:00.5]} 3... c6 {[%clk 0:03:00.1]}
4. Nc3 {[%clk 0:03:00.4]} 4... Nbd7 {[%clk 0:03:00.8]} 5. cxd5 {[%clk
0:02:59.6]} 5... cxd5 {[%clk 0:03:01.1]} 6. d4 {[%clk 0:03:00.2]} 6... a6 {[%clk
0:02:53.3]} 7. Bd3 {[%clk 0:03:00.6]} 7... e6 {[%clk 0:02:52.2]} 8. O-O {[%clk
0:03:00.2]} 8... Bd6 {[%clk 0:02:52.9]} 9. Qe2 {[%clk 0:02:49.9]} 9... e5 {[%clk
0:02:47.9]} 10. e4 {[%clk 0:02:45.1]} 10... O-O {[%clk 0:02:47.8]} 11. dxe5
{[%clk 0:02:29.3]} 11... Nxe5 {[%clk 0:02:47.2]} 12. Nxe5 {[%clk 0:02:28.5]}
12... Bxe5 {[%clk 0:02:48.1]} 13. Nxd5 {[%clk 0:02:24.4]} 13... Nxd5 {[%clk
0:02:44.8]} 14. exd5 {[%clk 0:02:24.3]} 14... Qxd5 {[%clk 0:02:45.4]} 15. Qe4
{[%clk 0:02:20.6]} 15... Qxe4 {[%clk 0:02:39.7]} 16. Bxe4 {[%clk 0:02:21.5]}
16... Rb8 {[%clk 0:02:36.4]} 17. Be3 {[%clk 0:02:16.2]} 17... Be6 {[%clk
0:02:34.4]} 18. a4 {[%clk 0:02:08.5]} 18... b5 {[%clk 0:01:59.4]} 19. axb5
{[%clk 0:01:55.9]} 19... axb5 {[%clk 0:02:00.3]} 20. Rab1 {[%clk 0:01:51.5]}
20... b4 {[%clk 0:01:59.8]} 21. b3 {[%clk 0:01:44.5]} 21... Rbc8 {[%clk
0:01:51.8]} 22. Rfc1 {[%clk 0:01:39.6]} 22... Rc3 {[%clk 0:01:48.8]} 23. Rxc3
{[%clk 0:01:18.6]} 23... Bxc3 {[%clk 0:01:49.7]} 24. Kf1 {[%clk 0:01:19.2]}
24... f5 {[%clk 0:01:16.9]} 25. Bd3 {[%clk 0:01:10.1]} 25... Rd8 {[%clk
0:01:15.5]} 26. Bb5 {[%clk 0:01:00]} 26... Ra8 {[%clk 0:01:06.8]} 27. Ke2 {[%clk
0:00:55.9]} 27... Kf7 {[%clk 0:01:04.5]} 28. Kd3 {[%clk 0:00:54.5]} 28... Rd8+
{[%clk 0:01:01.4]} 29. Ke2 {[%clk 0:00:54.3]} 29... h6 {[%clk 0:00:57.2]} 30. g3
{[%clk 0:00:43.7]} 30... g5 {[%clk 0:00:50.1]} 31. Bc4 {[%clk 0:00:38.3]} 31...
Bxc4+ {[%clk 0:00:16.4]} 32. bxc4 {[%clk 0:00:38.4]} 32... Ke6 {[%clk
0:00:17.3]} 33. h3 {[%clk 0:00:29.4]} 33... Ra8 {[%clk 0:00:05.6]} 34. Kd3
{[%clk 0:00:29.7]} 34... Ra3 {[%clk 0:00:05.6]} 35. Kc2 {[%clk 0:00:25.7]} 35...
Ra2+ {[%clk 0:00:06.1]} 36. Kd3 {[%clk 0:00:25.8]} 36... Kd6 {[%clk 0:00:04.4]}
37. Bd4 {[%clk 0:00:15.9]} 37... Rd2+ {[%clk 0:00:04.1]} 38. Ke3 {[%clk
0:00:15.6]} 38... Rxd4 {[%clk 0:00:05]} 39. h4 {[%clk 0:00:09.9]} 39... gxh4
{[%clk 0:00:04.9]} 40. gxh4 {[%clk 0:00:10.2]} 40... Kc5 {[%clk 0:00:05.4]} 41.
f3 {[%clk 0:00:10.7]} 41... Kxc4 {[%clk 0:00:05.8]} 0-1

[Event "Early-Titled-Tuesday-Blitz-May-14-2024"]
[Site "Chess.com"]
[Date "2024.05.14"]
[Round "11"]
[White "Savagelittlemole"]
[Black "Ginger_GM"]
[Result "0-1"]
[WhiteElo "2496"]
[BlackElo "2680"]
[TimeControl "180+1"]
[EndTime "10:08:11 PDT"]
[Termination "Ginger_GM won on time"]

1. e4 {[%clk 0:02:58.7]} 1... d6 {[%clk 0:02:57.8]} 2. d4 {[%clk 0:02:58.7]}
2... Nf6 {[%clk 0:02:57.2]} 3. Nc3 {[%clk 0:02:59.2]} 3... Nbd7 {[%clk 0:02:57]}
4. Bg5 {[%clk 0:02:59.1]} 4... e5 {[%clk 0:02:56.5]} 5. Nge2 {[%clk 0:02:52]}
5... Be7 {[%clk 0:02:56.2]} 6. g3 {[%clk 0:02:51.1]} 6... h6 {[%clk 0:02:50.8]}
7. Be3 {[%clk 0:02:45.7]} 7... b5 {[%clk 0:02:45.9]} 8. a3 {[%clk 0:02:43.8]}
8... Rb8 {[%clk 0:02:44]} 9. Bg2 {[%clk 0:02:40.9]} 9... a5 {[%clk 0:02:43.7]}
10. O-O {[%clk 0:02:35.6]} 10... O-O {[%clk 0:02:43.3]} 11. h3 {[%clk
0:02:33.4]} 11... b4 {[%clk 0:02:42.9]} 12. axb4 {[%clk 0:02:33.4]} 12... axb4
{[%clk 0:02:42.6]} 13. Nd5 {[%clk 0:02:34.1]} 13... Nxd5 {[%clk 0:02:42.6]} 14.
exd5 {[%clk 0:02:35]} 14... Bf6 {[%clk 0:02:38]} 15. f4 {[%clk 0:02:14.6]} 15...
exd4 {[%clk 0:02:32.4]} 16. Nxd4 {[%clk 0:02:10.1]} 16... Bb7 {[%clk 0:02:29.8]}
17. Nf5 {[%clk 0:01:56.9]} 17... Re8 {[%clk 0:02:23]} 18. Qg4 {[%clk 0:01:54.3]}
18... Kh8 {[%clk 0:02:13.8]} 19. Rab1 {[%clk 0:01:32.1]} 19... Nf8 {[%clk
0:02:04.7]} 20. Rfe1 {[%clk 0:01:26.3]} 20... Bc8 {[%clk 0:01:50.2]} 21. Qh5
{[%clk 0:01:20.1]} 21... Nh7 {[%clk 0:01:42.9]} 22. Bd4 {[%clk 0:00:50.3]} 22...
Bxf5 {[%clk 0:01:28.8]} 23. Rxe8+ {[%clk 0:00:49.8]} 23... Qxe8 {[%clk
0:01:28.5]} 24. Bxf6 {[%clk 0:00:49.1]} 24... Nxf6 {[%clk 0:01:25.9]} 25. Qxf5
{[%clk 0:00:48]} 25... Qe3+ {[%clk 0:01:25.7]} 26. Kh2 {[%clk 0:00:46.9]} 26...
Re8 {[%clk 0:01:23.5]} 27. Ra1 {[%clk 0:00:38.1]} 27... Qf2 {[%clk 0:01:19.1]}
28. Rf1 {[%clk 0:00:16.4]} 28... Qd2 {[%clk 0:01:18.5]} 29. Ra1 {[%clk
0:00:15.9]} 29... Re2 {[%clk 0:00:54.8]} 30. Ra8+ {[%clk 0:00:15.6]} 30... Ne8
{[%clk 0:00:50.5]} 31. Rxe8+ {[%clk 0:00:06.5]} 31... Rxe8 {[%clk 0:00:49.9]}
32. Qxf7 {[%clk 0:00:06.8]} 32... Qe1 {[%clk 0:00:37.7]} 33. h4 {[%clk
0:00:05.5]} 33... Qe7 {[%clk 0:00:32.8]} 34. Qg6 {[%clk 0:00:04.3]} 34... Rf8
{[%clk 0:00:30.9]} 35. Be4 {[%clk 0:00:04.1]} 35... Kg8 {[%clk 0:00:26.5]} 36.
Qh7+ {[%clk 0:00:04.4]} 36... Kf7 {[%clk 0:00:26.9]} 37. Qg6+ {[%clk 0:00:04.7]}
37... Kg8 {[%clk 0:00:27.2]} 38. Bf5 {[%clk 0:00:01.7]} 38... Qe2+ {[%clk
0:00:22.2]} 39. Kh3 {[%clk 0:00:02.2]} 39... Qf1+ {[%clk 0:00:17]} 40. Kg4
{[%clk 0:00:02.7]} 40... Qd1+ {[%clk 0:00:14.5]} 41. Kh3 {[%clk 0:00:02]} 41...
Rf6 {[%clk 0:00:09.3]} 0-1